[Event "European Online Club-ch-F 2021"]
[Site "Online"]
[Date "2021.03.27"]
[Round "9.17"]
[White "Gorodetzky, Matan"]
[Black "Amin, Bassem"]
[Result "0-1"]
[ECO "C55"]
[WhiteElo "2253"]
[BlackElo "2695"]
[Annotator "ChessBase"]
[PlyCount "58"]
[EventDate "2021.03.27"]
[EventType "team-tourn"]
[EventCountry "NET"]
[SourceTitle "playchess.com"]
[Source "ChessBase"]
[SourceQuality "1"]
[TimeControl "900+5"]

1. e4 {[%emt 0:00:00]} e5 {[%emt 0:00:03]} 2. Nf3 {[%emt 0:00:03]} Nc6 {[%emt 0:00:01]} 3. Bc4 {[%emt 0:00:02]} Nf6 {[%emt 0:00:01]} 4. d3 {[%emt 0:00:01]} h6 {[%emt 0:00:01]} 5. a4 {[%emt 0:00:07]} d6 {[%emt 0:00:10]} 6. h3 {[%emt 0:00:06]} g6 {[%emt 0:00:17]} 7. O-O {[%emt 0:00:02]} Bg7 {[%emt 0:00:08]} 8. Nc3 {[%emt 0:00:02]} O-O {[%emt 0:00:03]} 9. Be3 {[%emt 0:00:03]} Be6 {[%emt 0:00:17]} 10. Re1 {[%emt 0:00:22]} d5 {[%emt 0:01:29]} 11. exd5 {[%emt 0:00:06]} Nxd5 {[%emt 0:00:00]} 12. Bc5 {[%emt 0:00:51]} Re8 {[%emt 0:00:31]} 13. Bb5 {[%emt 0:00:05]} Nxc3 {[%emt 0:02:05]} 14. bxc3 {[%emt 0:00:03]} Bd5 {[%emt 0:00:02]} 15. Nd2 {[%emt 0:01:18]} a6 {[%emt 0:00:25]} 16. Bc4 {[%emt 0:00:07]} b6 {[%emt 0:00:15]} 17. Ba3 {[%emt 0:01:07]} Kh7 {[%emt 0:00:28]} 18. Bxd5 {[%emt 0:00:51]} Qxd5 {[%emt 0:00:00]} 19. Qf3 {[%emt 0:00:02]} Qxf3 {[%emt 0:00:15]} 20. gxf3 {[%emt 0:00:20]} Rad8 {[%emt 0:00:16]} 21. Bb2 {[%emt 0:01:13]} f5 {[%emt 0:00:15]} 22. Re2 {[%emt 0:00:28]} Kg8 {[%emt 0:01:09]} 23. Nb3 {[%emt 0:00:17]} a5 {[%emt 0:00:09]} 24. c4 {[%emt 0:00:06]} Bf8 {[%emt 0:00:16]} 25. Kf1 {[%emt 0:00:33]} Kf7 {[%emt 0:00:07]} 26. Bc3 {[%emt 0:00:29]} Bb4 {[%emt 0:00:41]} 27. Bxb4 {[%emt 0:01:10]} Nxb4 {[%emt 0:00:00]} 28. Rae1 {[%emt 0:00:06]} c5 {[%emt 0:01:00]} 29. Nd2 {[%emt 0:00:52]} Nxc2 {[%emt 0:00:07]} 0-1

[Event "European Online Club-ch-F 2021"]
[Site "Online"]
[Date "2021.03.27"]
[Round "9.18"]
[White "Van Wely, Loek"]
[Black "Katkov, Michelle"]
[Result "1-0"]
[ECO "E12"]
[WhiteElo "2620"]
[BlackElo "2078"]
[Annotator "ChessBase"]
[PlyCount "47"]
[EventDate "2021.03.27"]
[EventType "team-tourn"]
[EventCountry "NET"]
[SourceTitle "playchess.com"]
[Source "ChessBase"]
[SourceQuality "1"]
[TimeControl "900+5"]

1. d4 {[%emt 0:00:00]} Nf6 {[%emt 0:00:03]} 2. c4 {[%emt 0:00:03]} e6 {[%emt 0:00:02]} 3. Nf3 {[%emt 0:00:02]} b6 {[%emt 0:00:06]} 4. a3 {[%emt 0:00:04]} Bb7 {[%emt 0:00:04]} 5. Nc3 {[%emt 0:00:02]} d5 {[%emt 0:00:02]} 6. Bg5 {[%emt 0:00:04]} dxc4 {[%emt 0:00:15]} 7. e4 {[%emt 0:00:10]} Be7 {[%emt 0:00:04]} 8. Bxf6 {[%emt 0:00:08]} Bxf6 {[%emt 0:00:04]} 9. e5 {[%emt 0:00:12]} Be7 {[%emt 0:00:04]} 10. Bxc4 {[%emt 0:00:02]} O-O {[%emt 0:00:14]} 11. O-O {[%emt 0:00:03]} c5 {[%emt 0:01:31]} 12. d5 {[%emt 0:00:14]} exd5 {[%emt 0:00:04]} 13. Nxd5 {[%emt 0:00:45]} Nc6 {[%emt 0:00:45]} 14. Re1 {[%emt 0:02:05]} Na5 {[%emt 0:05:27]} 15. b3 {[%emt 0:01:53]} a6 {[%emt 0:01:20]} 16. a4 {[%emt 0:00:04]} Bc6 {[%emt 0:00:34]} 17. e6 {[%emt 0:01:18]} Nxc4 {[%emt 0:00:21]} 18. exf7+ {[%emt 0:00:13]} Rxf7 {[%emt 0:00:08]} 19. Nxe7+ {[%emt 0:00:12]} Rxe7 {[%emt 0:00:39]} 20. Qxd8+ {[%emt 0:00:06]} Rxd8 {[%emt 0:00:01]} 21. Rxe7 {[%emt 0:00:02]} Na5 {[%emt 0:00:26]} 22. Ne5 {[%emt 0:00:07]} Bd5 {[%emt 0:01:02]} 23. Rd1 {[%emt 0:00:09]} Nxb3 {[%emt 0:00:02]} 24. Rxd5 {[%emt 0:00:07]} 1-0

[Event "European Online Club-ch-F 2021"]
[Site "Online"]
[Date "2021.03.27"]
[Round "9.19"]
[White "Stolyarsky, Yegor"]
[Black "Hamdouchi, Hicham"]
[Result "1-0"]
[ECO "E67"]
[WhiteElo "2063"]
[BlackElo "2561"]
[Annotator "ChessBase"]
[PlyCount "107"]
[EventDate "2021.03.27"]
[EventType "team-tourn"]
[EventCountry "NET"]
[SourceTitle "playchess.com"]
[Source "ChessBase"]
[SourceQuality "1"]
[TimeControl "900+5"]

1. d4 {[%emt 0:00:00]} Nf6 {[%emt 0:00:03]} 2. Nf3 {[%emt 0:00:06]} g6 {[%emt 0:00:18]} 3. c4 {[%emt 0:00:03]} Bg7 {[%emt 0:00:02]} 4. g3 {[%emt 0:00:01]} O-O {[%emt 0:00:06]} 5. Bg2 {[%emt 0:00:01]} d6 {[%emt 0:00:24]} 6. O-O {[%emt 0:00:04]} Nbd7 {[%emt 0:00:02]} 7. Nc3 {[%emt 0:00:03]} e5 {[%emt 0:00:02]} 8. e3 {[%emt 0:00:30]} Re8 {[%emt 0:00:08]} 9. b3 {[%emt 0:00:06]} c6 {[%emt 0:01:10]} 10. Bb2 {[%emt 0:00:05]} a6 {[%emt 0:00:25]} 11. Ne1 {[%emt 0:00:22]} e4 {[%emt 0:01:01]} 12. d5 {[%emt 0:00:35]} c5 {[%emt 0:01:35]} 13. Qc2 {[%emt 0:00:15]} Qe7 {[%emt 0:00:05]} 14. Rb1 {[%emt 0:00:23]} Nf8 {[%emt 0:00:02]} 15. Ba1 {[%emt 0:00:10]} Bf5 {[%emt 0:00:06]} 16. b4 {[%emt 0:00:11]} N8d7 {[%emt 0:00:25]} 17. Na4 {[%emt 0:00:32]} b5 {[%emt 0:01:57]} 18. cxb5 {[%emt 0:00:10]} axb5 {[%emt 0:00:02]} 19. Nc3 {[%emt 0:00:01]} cxb4 {[%emt 0:00:10]} 20. Rxb4 {[%emt 0:00:03]} Rec8 {[%emt 0:00:12]} 21. Rxb5 {[%emt 0:00:24]} Qe5 {[%emt 0:00:38]} 22. Qd2 {[%emt 0:00:42]} Ne8 {[%emt 0:00:54]} 23. f4 {[%emt 0:00:19]} exf3 {[%emt 0:00:23]} 24. Nxf3 {[%emt 0:00:02]} Qe7 {[%emt 0:00:26]} 25. Nd4 {[%emt 0:01:31]} Ne5 {[%emt 0:00:24]} 26. Nc6 {[%emt 0:00:43]} Nxc6 {[%emt 0:00:05]} 27. dxc6 {[%emt 0:00:03]} Nc7 {[%emt 0:00:02]} 28. Rb7 {[%emt 0:00:28]} Be6 {[%emt 0:00:23]} 29. Nd5 {[%emt 0:02:12]} Bxd5 {[%emt 0:00:30]} 30. Bxd5 {[%emt 0:00:08]} Rf8 {[%emt 0:00:10]} 31. Bxg7 {[%emt 0:00:25]} Kxg7 {[%emt 0:00:02]} 32. Qd4+ {[%emt 0:00:09]} f6 {[%emt 0:00:10]} 33. a4 {[%emt 0:02:54]} h5 {[%emt 0:01:41]} 34. a5 {[%emt 0:01:07]} Kh6 {[%emt 0:00:03]} 35. Ra1 {[%emt 0:00:40]} Ra6 {[%emt 0:00:26]} 36. Qe4 {[%emt 0:00:52]} Qd8 {[%emt 0:00:35]} 37. Bc4 {[%emt 0:00:04]} d5 {[%emt 0:00:45]} 38. Qf4+ {[%emt 0:00:13]} g5 {[%emt 0:00:02]} 39. Qxc7 {[%emt 0:00:08]} Qxc7 {[%emt 0:00:01]} 40. Rxc7 {[%emt 0:00:01]} dxc4 {[%emt 0:00:01]} 41. Rc1 {[%emt 0:00:37]} Rxa5 {[%emt 0:00:02]} 42. Rxc4 {[%emt 0:00:03]} Ra2 {[%emt 0:00:02]} 43. Rd7 {[%emt 0:00:19]} Re8 {[%emt 0:01:22]} 44. c7 {[%emt 0:00:35]} Rxe3 {[%emt 0:00:02]} 45. Rc1 {[%emt 0:00:02]} Ree2 {[%emt 0:00:01]} 46. c8=Q {[%emt 0:00:05]} Rg2+ {[%emt 0:00:05]} 47. Kf1 {[%emt 0:00:07]} Rgf2+ {[%emt 0:00:03]} 48. Ke1 {[%emt 0:00:08]} Rxh2 {[%emt 0:00:08]} 49. Qh8+ {[%emt 0:00:11]} Kg6 {[%emt 0:00:01]} 50. Qg8+ {[%emt 0:00:02]} Kf5 {[%emt 0:00:01]} 51. Rd5+ {[%emt 0:00:09]} Kg4 {[%emt 0:00:07]} 52. Qe6+ {[%emt 0:00:02]} Kxg3 {[%emt 0:00:13]} 53. Rd3+ {[%emt 0:00:07]} Kh4 {[%emt 0:00:20]} 54. Rc4+ {[%emt 0:00:03]} 1-0

[Event "European Online Club-ch-F 2021"]
[Site "Online"]
[Date "2021.03.27"]
[Round "9.20"]
[White "Delorme, Axel"]
[Black "Gleizer, Adar"]
[Result "1/2-1/2"]
[ECO "C88"]
[WhiteElo "2480"]
[BlackElo "1833"]
[Annotator "ChessBase"]
[PlyCount "97"]
[EventDate "2021.03.27"]
[EventType "team-tourn"]
[EventCountry "NET"]
[SourceTitle "playchess.com"]
[Source "ChessBase"]
[SourceQuality "1"]
[TimeControl "900+5"]

1. e4 {[%emt 0:00:00]} e5 {[%emt 0:00:05]} 2. Nf3 {[%emt 0:00:03]} Nc6 {[%emt 0:00:04]} 3. Bb5 {[%emt 0:00:03]} a6 {[%emt 0:00:01]} 4. Ba4 {[%emt 0:00:03]} Nf6 {[%emt 0:00:03]} 5. d3 {[%emt 0:00:03]} b5 {[%emt 0:00:07]} 6. Bb3 {[%emt 0:00:03]} Be7 {[%emt 0:00:02]} 7. O-O {[%emt 0:00:05]} O-O {[%emt 0:00:08]} 8. Re1 {[%emt 0:00:05]} d6 {[%emt 0:00:04]} 9. c3 {[%emt 0:00:05]} Nb8 {[%emt 0:00:13]} 10. a4 {[%emt 0:00:48]} Bb7 {[%emt 0:00:10]} 11. Nbd2 {[%emt 0:00:04]} Nbd7 {[%emt 0:00:08]} 12. Bc2 {[%emt 0:00:02]} Re8 {[%emt 0:00:14]} 13. Nf1 {[%emt 0:00:01]} Bf8 {[%emt 0:00:03]} 14. Ng3 {[%emt 0:00:34]} g6 {[%emt 0:00:06]} 15. b4 {[%emt 0:00:03]} Bg7 {[%emt 0:00:29]} 16. Bb3 {[%emt 0:00:04]} d5 {[%emt 0:00:30]} 17. Be3 {[%emt 0:01:03]} c6 {[%emt 0:01:38]} 18. Qc2 {[%emt 0:01:59]} Rc8 {[%emt 0:01:02]} 19. Qa2 {[%emt 0:00:15]} Re7 {[%emt 0:02:15]} 20. h4 {[%emt 0:00:49]} Qc7 {[%emt 0:00:21]} 21. Bc5 {[%emt 0:03:05]} Nxc5 {[%emt 0:00:29]} 22. bxc5 {[%emt 0:00:02]} Rd8 {[%emt 0:00:34]} 23. h5 {[%emt 0:00:57]} Bc8 {[%emt 0:00:31]} 24. hxg6 {[%emt 0:00:19]} hxg6 {[%emt 0:00:04]} 25. Rad1 {[%emt 0:01:41]} Bg4 {[%emt 0:01:08]} 26. axb5 {[%emt 0:00:57]} axb5 {[%emt 0:00:04]} 27. Ra1 {[%emt 0:00:20]} dxe4 {[%emt 0:00:39]} 28. Nxe4 {[%emt 0:01:01]} Bxf3 {[%emt 0:00:16]} 29. gxf3 {[%emt 0:00:02]} Rxd3 {[%emt 0:00:22]} 30. Rad1 {[%emt 0:00:46]} Rxd1 {[%emt 0:00:53]} 31. Rxd1 {[%emt 0:00:03]} Nxe4 {[%emt 0:00:14]} 32. Qa8+ {[%emt 0:00:40]} Kh7 {[%emt 0:00:33]} 33. fxe4 {[%emt 0:00:05]} Rd7 {[%emt 0:00:35]} 34. Qe8 {[%emt 0:00:10]} Rxd1+ {[%emt 0:00:24]} 35. Bxd1 {[%emt 0:00:03]} Bf6 {[%emt 0:00:10]} 36. Bg4 {[%emt 0:00:10]} Kg7 {[%emt 0:00:38]} 37. Bd7 {[%emt 0:00:33]} Qa5 {[%emt 0:00:44]} 38. Bxc6 {[%emt 0:00:10]} Qa1+ {[%emt 0:00:31]} 39. Kg2 {[%emt 0:00:11]} Qd1 {[%emt 0:00:13]} 40. Qd7 {[%emt 0:00:17]} Qxd7 {[%emt 0:00:06]} 41. Bxd7 {[%emt 0:00:04]} Be7 {[%emt 0:00:03]} 42. c6 {[%emt 0:00:02]} Bd6 {[%emt 0:00:03]} 43. Bc8 {[%emt 0:00:06]} b4 {[%emt 0:00:12]} 44. cxb4 {[%emt 0:00:07]} Bxb4 {[%emt 0:00:06]} 45. Be6 {[%emt 0:00:06]} Ba5 {[%emt 0:00:06]} 46. Bd5 {[%emt 0:00:02]} f5 {[%emt 0:00:08]} 47. exf5 {[%emt 0:00:06]} gxf5 {[%emt 0:00:02]} 48. Kf3 {[%emt 0:00:04]} Kf6 {[%emt 0:00:05]} 49. Ke2 {[%emt 0:00:02]} 1/2-1/2